fUSD/lending_fUSD_20260109
["ID","MTS","AMOUNT","RATE_DAILY","PERIOD"]
[401151332,1767981041328,-2211.33788248,0.00017693,2]
[401151333,1767981041338,-2500.0,0.000177,2]
[401151334,1767981041347,-5762.07341706,0.00017706,2]
[401151335,1767981041357,-2148.22459314,0.00017723,2]
[401151336,1767981041449,-63.11328934,0.00017723,2]
[401151337,1767981041460,-150.0,0.00017729,2]
[401151338,1767981041470,-273.60393039,0.00017729,2]
[401151339,1767981041479,-150.0,0.00017729,2]
[401151340,1767981041489,-1000000.0,0.0001773,2]
[401151341,1767981041498,-5762.07341706,0.00017734,2]
[401151342,1767981041507,-151.0,0.00017751,2]
[401151343,1767981041517,-2211.33788248,0.00017752,2]
[401151344,1767981041527,-5762.07341706,0.00017762,2]
[401151345,1767981041536,-2211.33788248,0.00017782,2]
[401151346,1767981041545,-5762.07341706,0.00017789,2]
[401151347,1767981041555,-200.35779431,0.00017808,2]
[401151348,1767981041564,-2211.33788248,0.00017811,2]
[401151349,1767981041574,-5762.07341706,0.00017817,2]
[401151350,1767981041584,-182.0,0.00017819,2]
[401151351,1767981041593,-2211.33788248,0.00017841,2]
[401151352,1767981041603,-1405.0,0.00017844,2]
[401151353,1767981041612,-1330.0,0.00017844,2]
[401151354,1767981041622,-614.0,0.00017844,2]
[401151355,1767981041632,-3468.0,0.00017844,2]
[401151356,1767981041643,-1266.0,0.00017844,2]
[401151357,1767981041654,-505.0,0.00017844,2]
[401151358,1767981041664,-914.0,0.00017844,2]
[401151359,1767981041673,-6553.0,0.00017844,2]
[401151360,1767981041683,-150.0,0.00017844,2]
[401151361,1767981041692,-566.0,0.00017844,2]
[401151362,1767981041703,-5762.07341706,0.00017845,2]
[401151363,1767981041712,-200.0,0.00017855,2]
[401151364,1767981041722,-2000.0,0.00017856,2]
[401151365,1767981041732,-200.0,0.00017856,2]
[401151366,1767981041742,-366.0,0.0001786,2]
[401151367,1767981041752,-2211.33788248,0.0001787,2]
[401151368,1767981041762,-5762.07341706,0.00017872,2]
[401151369,1767981041776,-151.0,0.00017876,2]
[401151370,1767981041785,-152.97729788,0.0001789,2]
[401151371,1767981041794,-10000.0,0.000179,2]
[401151372,1767981041803,-1000.0,0.000179,2]
[401151373,1767981041813,-2609.82690506,0.000179,2]
[401151374,1767981041823,-10101.4972,0.000179,2]
[401151375,1767981041833,-1130.70977417,0.000179,2]
[401151376,1767981041845,-2071.58230469,0.000179,2]
[401151377,1767981041855,-2071.58230469,0.000179,2]
[401151378,1767981041864,-2071.58230469,0.000179,2]
[401151379,1767981041874,-2071.58230469,0.000179,2]
[401151380,1767981041884,-2071.58230469,0.000179,2]
[401151381,1767981041893,-2071.58230469,0.000179,2]
[401151382,1767981041903,-2071.58230469,0.000179,2]
[401151383,1767981041912,-9704.82107619,0.000179,3]
[401151384,1767981041921,-2071.58230469,0.000179,2]
[401151385,1767981041932,-2071.58230469,0.000179,2]
[401151386,1767981041942,-2071.58230469,0.000179,2]
[401151387,1767981041952,-2071.58230469,0.000179,2]
[401151388,1767981041961,-2071.58230469,0.000179,2]
[401151389,1767981041971,-2071.58230469,0.000179,2]
[401151390,1767981041980,-2071.58230469,0.000179,2]
[401151391,1767981041990,-5762.07341706,0.000179,2]
[401151392,1767981041999,-565.17771938,0.000179,2]
[401151393,1767981042009,-4834.31017102,0.000179,2]
[401151394,1767981042019,-773.31348478,0.000179,2]
[401151395,1767981042028,-27199.40669553,0.000179,2]
[401151396,1767981042038,-2211.33788248,0.000179,2]
[401151397,1767981042047,-8996.7949863,0.000179,2]
[401151398,1767981042057,-3205.18305285,0.000179,2]
[401151399,1767981042066,-3560.0,0.000179,2]
[401151400,1767981042076,-182.0,0.00017958,2]
[401151401,1767981042085,-500.0,0.00017973,2]
[401151402,1767981042095,-500.0,0.00017973,2]
[401151403,1767981042106,-500.0,0.00017973,2]
[401151404,1767981042115,-500.0,0.00017973,2]
[401151405,1767981042127,-500.0,0.00017973,2]
[401151406,1767981042136,-609.94892981,0.00017973,2]
[401151407,1767981042146,-500.0,0.00017973,2]
[401151408,1767981042156,-500.0,0.00017973,2]
[401151409,1767981042166,-500.0,0.00017973,2]
[401151410,1767981042176,-500.0,0.00017973,2]
[401151411,1767981042186,-286.84842062,0.00017973,2]
[401151412,1767981042196,-500.0,0.00017973,2]
[401151413,1767981042206,-500.0,0.00017973,2]
[401151414,1767981042216,-500.0,0.00017973,2]
[401151415,1767981042225,-500.0,0.00017973,2]
[401151416,1767981042235,-500.0,0.00017973,2]
[401151417,1767981042244,-500.0,0.00017973,2]
[401151418,1767981042254,-195.06667749,0.00017973,2]
[401151419,1767981042263,-168.53464326,0.00017973,2]
[401151420,1767981042273,-500.0,0.00017973,2]
[401151421,1767981042282,-500.0,0.00017973,2]
[401151422,1767981042292,-515.27642925,0.00017973,2]
[401151423,1767981042301,-500.0,0.00017973,2]
[401151424,1767981042311,-500.0,0.00017973,2]
[401151425,1767981042321,-501.05787152,0.00017973,2]
[401151426,1767981042330,-429.09119552,0.00017973,2]
[401151427,1767981042339,-578.02071049,0.00017973,2]
[401151428,1767981042348,-500.0,0.00017973,2]
[401151429,1767981042358,-150.0,0.00017973,2]
[401151430,1767981042367,-500.0,0.00017973,2]
[401151431,1767981042378,-500.0,0.00017973,2]
[401151432,1767981042389,-500.0,0.00017973,2]
[401151433,1767981042399,-500.0,0.00017973,2]
[401151434,1767981042409,-500.0,0.00017973,2]
[401151435,1767981042419,-500.0,0.00017973,2]
[401151436,1767981042429,-500.0,0.00017973,2]
[401151437,1767981042439,-279.31517583,0.00017973,2]
[401151438,1767981042448,-500.0,0.00017973,2]
[401151439,1767981042457,-398.03125352,0.00017973,2]
[401151440,1767981042467,-500.0,0.00017973,2]
[401151441,1767981042476,-500.0,0.00017973,2]
[401151442,1767981042485,-500.0,0.00017973,2]
[401151443,1767981042494,-500.0,0.00017973,2]
[401151444,1767981042503,-208.06887662,0.00017973,2]
[401151445,1767981042512,-500.0,0.00017973,2]
[401151446,1767981042521,-546.15438132,0.00017973,2]
[401151447,1767981042531,-500.0,0.00017973,2]
[401151448,1767981042540,-500.0,0.00017973,2]
[401151449,1767981042549,-182.86859792,0.00017973,2]
[401151450,1767981042558,-500.0,0.00017973,2]
[401151451,1767981042567,-500.0,0.00017973,2]
[401151452,1767981042576,-165.3256661,0.00017973,2]
[401151453,1767981042585,-500.0,0.00017973,2]
[401151454,1767981042594,-500.0,0.00017973,2]
[401151455,1767981042604,-500.0,0.00017973,2]
[401151456,1767981042614,-500.0,0.00017973,2]
[401151457,1767981042623,-500.0,0.00017973,2]
[401151458,1767981042633,-500.0,0.00017973,2]
[401151459,1767981042642,-500.0,0.00017973,2]
[401151460,1767981042651,-554.86072459,0.00017973,2]
[401151461,1767981042661,-500.0,0.00017973,2]
[401151462,1767981042670,-500.0,0.00017973,2]
[401151463,1767981042680,-500.0,0.00017973,2]
[401151464,1767981042689,-150.0,0.00017973,2]
[401151465,1767981042698,-150.0,0.00017973,2]
[401151466,1767981042707,-500.0,0.00017982,2]
[401151467,1767981042717,-152.97729788,0.0001799,2]
[401151468,1767981042726,-152.97729788,0.0001799,2]
[401151470,1767981042735,-41937.3218723,0.00017996,2]
[401151471,1767981042745,-188055.1601373,0.00017996,2]
[401151472,1767981042754,-19805.8388574,0.00017996,2]
[401151473,1767981042765,-1421.9402566,0.00017996,2]
[401151474,1767981042776,-51323.4931128,0.00017996,2]
[401151475,1767981042786,-3368.8620943,0.00017996,2]
[401151476,1767981042795,-300.0,0.00017999,2]
[401151477,1767981042805,-300.0,0.00017999,2]
[401151478,1767981042814,-7824.46415532,0.00017999,2]
[401151479,1767981042824,-300.0,0.00017999,2]
[401151480,1767981042834,-666.0,0.00017999,2]
[401151481,1767981042845,-300.0,0.00017999,2]
[401151482,1767981042854,-300.0,0.00017999,2]
[401151483,1767981042863,-150.0,0.00017999,2]
[401151484,1767981042873,-150.0,0.00017999,2]
[401151485,1767981042882,-300.0,0.00017999,2]
[401151486,1767981042892,-666.0,0.00017999,2]
[401151487,1767981042901,-1279299.91561098,0.00018,2]
[401151504,1767981046263,-2157.39325665,0.000169,2]
[401151505,1767981046275,-2557.14506713,0.000169,2]
[401151506,1767981046291,-74576.88549958,0.000169,2]
[401151507,1767981049709,1713.08544129,0.000202,30]
[401151508,1767981135435,717.62145673,0.000176,30]
[401151511,1767982232058,-166.66,0.00015624,2]
[401151512,1767982232067,-600.0,0.00015678,2]
[401151513,1767982232076,-500.0,0.00015739,2]
[401151514,1767982232086,-600.0,0.00015754,2]
[401151515,1767982232098,-600.0,0.00015754,2]
[401151516,1767982232107,-269.83,0.00015787,2]
[401151517,1767982232115,-133.40026542,0.00015838,2]
[401151518,1767982232127,-487.79861401,0.00015838,2]
[401151519,1767982232170,-449.3861415,0.00015838,2]
[401151525,1767982237950,-129.41497907,0.00015838,2]
[401151526,1767982237959,-300.0,0.00015838,2]
[401151527,1767982237968,-481.94369721,0.00015839,2]
[401151528,1767982238005,-1120.43290127,0.00015839,2]
[401151529,1767982238016,-6123.86340152,0.00015839,2]
[401151530,1767982238025,-1000.0,0.00015856,2]
[401151531,1767982238037,-166.66,0.00015953,2]
[401151532,1767982238046,-151.0,0.00015979,2]
[401151533,1767982238055,-151.0,0.00015981,2]
[401151534,1767982238064,-151.0,0.00015981,2]
[401151535,1767982238073,-151.0,0.00015983,2]
[401151536,1767982238082,-151.0,0.00015983,2]
[401151537,1767982238092,-166.66,0.00016282,2]
[401151557,1767982238339,-196.36582859,0.000163,2]
[401151564,1767982238460,-196.36582859,0.000163,2]
[401151566,1767982238470,-150.0,0.00016301,2]
[401151568,1767982238479,-150.0,0.00016301,2]
[401151570,1767982238489,-2237.48033587,0.00016338,2]
[401151572,1767982238500,-1783.66650095,0.00016338,2]
[401151575,1767982238512,-1191.05638716,0.00016338,2]
[401151597,1767982240157,-2254.90890695,0.00016338,2]
[401151598,1767982240171,-1579.56364063,0.00016338,2]
[401151600,1767982240183,-3355.13629713,0.00016338,2]
[401151603,1767982240195,-785.864716,0.00016338,2]
[401151605,1767982240207,-601.78065124,0.00016338,2]
[401151618,1767982240347,-316.82401151,0.00016338,2]
[401151619,1767982240370,-858.91170089,0.00016338,2]
[401151620,1767982240425,-985034.80685167,0.00016338,2]
[401151622,1767982240435,-661.58,0.000164,2]
[401151625,1767982240448,-661.58,0.000164,2]
[401151626,1767982240458,-661.58,0.000164,2]
[401151627,1767982240467,-661.58,0.000164,2]
[401151628,1767982240476,-661.58,0.000164,2]
[401151630,1767982240486,-11419.86,0.00016438,2]
[401151632,1767982240496,-200.0,0.00016506,2]
[401151633,1767982240507,-196.36582854,0.00016529,2]
[401151634,1767982240517,-196.36582854,0.00016529,2]
[401151635,1767982240527,-166.66,0.00016611,2]
[401151637,1767982240537,-200.0,0.0001669,2]
[401151638,1767982240546,-863.02,0.00016753,2]
[401151639,1767982240556,-192.0,0.00016753,2]
[401151640,1767982240565,-196.36582854,0.00016757,2]
[401151641,1767982240575,-196.36582854,0.00016757,2]
[401151642,1767982240584,-10101.4972,0.000168,2]
[401151643,1767982240593,-2500.0,0.000168,2]
[401151644,1767982240603,-6366.121,0.000168,2]
[401151645,1767982240612,-1333.11405844,0.00016828,2]
[401151646,1767982240622,-4033.45139196,0.00016834,2]
[401151647,1767982240631,-402.4918132,0.00016863,2]
[401151648,1767982240644,-272.0,0.00016882,2]
[401151649,1767982240653,-5469.63784536,0.0001689,2]
[401151650,1767982240663,-192.0,0.00016934,2]
[401151651,1767982240672,-166.66,0.0001694,2]
[401151652,1767982240682,-1333.11405842,0.00016947,2]
[401151653,1767982240694,-4033.45139194,0.00016952,2]
[401151654,1767982240703,-152.0,0.00016963,3]
[401151655,1767982240713,-192.0,0.00016981,2]
[401151656,1767982240723,-250.0,0.00017,2]
[401151657,1767982240733,-159.10718444,0.00017008,2]
[401151658,1767982240742,-352.0,0.00017027,2]
[401151659,1767982240751,-661.58,0.00017041,2]
[401151660,1767982240761,-661.58,0.00017041,2]
[401151661,1767982240771,-1333.11405842,0.00017066,2]
[401151662,1767982240780,-4033.45139194,0.00017071,2]
[401151663,1767982240790,-526.0,0.00017075,2]
[401151664,1767982240799,-192.0,0.00017092,2]
[401151665,1767982240808,-500.0,0.00017096,2]
[401151666,1767982240817,-322.6107,0.00017099,2]
[401151667,1767982240827,-553.64373807,0.00017099,2]
[401151668,1767982240838,-192.0,0.00017137,2]
[401151669,1767982240848,-1333.11405842,0.00017185,2]
[401151670,1767982240857,-600.0,0.00017186,2]
[401151671,1767982240867,-600.0,0.00017186,2]
[401151672,1767982240876,-415.25011404,0.00017186,2]
[401151673,1767982240886,-4033.45139194,0.00017189,2]
[401151674,1767982240895,-166.66,0.00017269,2]
[401151675,1767982240905,-500.0,0.00017296,2]
[401151676,1767982240914,-1333.11405842,0.00017304,2]
[401151677,1767982240924,-4033.45139194,0.00017308,2]
[401151678,1767982240934,-420.0,0.00017319,2]
[401151679,1767982240946,-500.0,0.00017351,2]
[401151680,1767982240955,-611.0,0.00017406,2]
[401151681,1767982240965,-1680.0,0.00017406,2]
[401151682,1767982240974,-1333.11405842,0.00017424,2]
[401151683,1767982240983,-4033.45139194,0.00017426,2]
[401151684,1767982240993,-1333.11405842,0.00017543,2]
[401151685,1767982241003,-4033.45139194,0.00017545,2]
[401151686,1767982241012,-331.48513266,0.00017578,2]
[401151687,1767982241022,-1000.0,0.0001763,2]
[401151688,1767982241031,-1559.66297126,0.0001764,2]
[401151689,1767982241041,-574.12855637,0.00017647,2]
[401151690,1767982241050,-1333.11405842,0.00017662,2]
[401151691,1767982241059,-4033.45139194,0.00017663,2]
[401151692,1767982241068,-965.64,0.00017682,2]
[401151693,1767982241078,-482.82,0.00017682,2]
[401151694,1767982241087,-482.82,0.00017682,2]
[401151695,1767982241100,-482.82,0.00017682,2]
[401151696,1767982241109,-482.82,0.00017682,2]
[401151697,1767982241125,-1000.0,0.000177,2]
[401151698,1767982241140,-1000.0,0.000177,2]
[401151699,1767982241154,-1000.0,0.000177,2]
[401151700,1767982241168,-1000.0,0.00017735,2]
[401151701,1767982241179,-151.0,0.00017756,2]
[401151702,1767982241192,-1333.11405842,0.00017781,2]
[401151703,1767982241205,-4033.45139194,0.00017782,2]
[401151704,1767982241228,-526.0,0.00017784,2]
[401151705,1767982241246,-761.55285318,0.00017791,2]
[401151706,1767982241261,-1238.82385733,0.00017791,2]
[401151707,1767982241278,-1749.58901939,0.00017791,2]
[401151708,1767982241295,-2263.9221,0.00017791,2]
[401151709,1767982241311,-2000.0,0.000178,2]
[401151710,1767982241323,-200.35779431,0.00017808,2]
[401151711,1767982241336,-1000.0,0.00017838,2]
[401151712,1767982241351,-150.0,0.00017844,2]
[401151713,1767982241366,-200.0,0.00017844,2]
[401151714,1767982241380,-200.0,0.00017844,2]
[401151715,1767982241394,-150.0,0.00017844,2]
[401151716,1767982241408,-250.0,0.00017844,2]
[401151717,1767982241423,-171.0,0.00017844,2]
[401151718,1767982241436,-194.254,0.00017844,2]
[401151719,1767982241453,-226.508,0.00017844,2]
[401151720,1767982241468,-211.999,0.00017844,2]
[401151721,1767982241483,-250.0,0.00017844,2]
[401151722,1767982241496,-157.382,0.00017844,2]
[401151723,1767982241511,-243.342,0.00017844,2]
[401151724,1767982241523,-190.931,0.00017844,2]
[401151725,1767982241537,-163.819,0.00017844,2]
[401151726,1767982241551,-211.969,0.00017844,2]
[401151727,1767982241579,-250.0,0.00017844,2]
[401151728,1767982241595,-169.0,0.00017844,2]
[401151729,1767982241610,-229.605,0.00017844,2]
[401151730,1767982241624,-3468.0,0.00017844,2]
[401151731,1767982241635,-614.0,0.00017844,2]
[401151732,1767982241647,-1330.0,0.00017844,2]
[401151733,1767982241659,-1405.0,0.00017844,2]
[401151734,1767982241673,-505.0,0.00017844,2]
[401151735,1767982241687,-1266.0,0.00017844,2]
[401151736,1767982241701,-914.0,0.00017844,2]
[401151737,1767982241711,-1201.0,0.00017844,2]
[401151738,1767982241723,-4819.0,0.00017844,2]
[401151739,1767982241736,-2436.0,0.00017844,2]
[401151740,1767982241757,-566.0,0.00017844,2]
[401151741,1767982241770,-200.0,0.00017855,2]
[401151742,1767982241781,-214.43976733,0.00017856,2]
[401151743,1767982241793,-2000.0,0.00017856,2]
[401151744,1767982241804,-200.0,0.00017856,2]
[401151745,1767982241817,-151.0,0.00017878,2]
[401151746,1767982241830,-152.97729788,0.0001789,2]
[401151747,1767982241843,-9704.82107619,0.000179,3]
[401151748,1767982241884,-10000.0,0.000179,2]
[401151749,1767982241902,-565.17771938,0.000179,2]
[401151750,1767982241921,-1333.11405842,0.000179,2]
[401151751,1767982241937,-4033.45139194,0.000179,2]
[401151752,1767982241954,-2071.58230481,0.000179,2]
[401151753,1767982241968,-2071.58230469,0.000179,2]
[401151754,1767982241983,-2071.58230469,0.000179,2]
[401151755,1767982241997,-2071.58230469,0.000179,2]
[401151756,1767982242011,-2071.58230469,0.000179,2]
[401151757,1767982242026,-2071.58230469,0.000179,2]
[401151758,1767982242040,-2071.58230469,0.000179,2]
[401151759,1767982242053,-2071.58230469,0.000179,2]
[401151760,1767982242067,-1130.70977417,0.000179,2]
[401151761,1767982242081,-2071.58230469,0.000179,2]
[401151762,1767982242098,-3205.18305285,0.000179,2]
[401151763,1767982242111,-2071.58230469,0.000179,2]
[401151764,1767982242125,-500.0,0.000179,2]
[401151765,1767982242139,-500.0,0.000179,2]
[401151766,1767982242152,-500.0,0.000179,2]
[401151767,1767982242165,-500.0,0.000179,2]
[401151768,1767982242179,-500.0,0.000179,2]
[401151769,1767982242193,-500.0,0.000179,2]
[401151770,1767982242206,-500.0,0.000179,2]
[401151771,1767982242219,-500.0,0.000179,2]
[401151772,1767982242231,-500.0,0.000179,2]
[401151773,1767982242246,-500.0,0.000179,2]
[401151774,1767982242259,-500.0,0.000179,2]
[401151775,1767982242270,-500.0,0.000179,2]
[401151776,1767982242286,-500.0,0.000179,2]
[401151777,1767982242299,-500.0,0.000179,2]
[401151778,1767982242312,-500.0,0.000179,2]
[401151779,1767982242324,-500.0,0.000179,2]
[401151780,1767982242338,-500.0,0.000179,2]
[401151781,1767982242350,-500.0,0.000179,2]
[401151782,1767982242363,-500.0,0.000179,2]
[401151783,1767982242376,-500.0,0.000179,2]
[401151784,1767982242388,-3359.0,0.000179,2]
[401151785,1767982242401,-526.0,0.00017903,2]
[401151786,1767982242415,-793.00497534,0.00017914,2]
[401151787,1767982242426,-1000.0,0.00017945,2]
[401151788,1767982242439,-232446.4134955,0.00017947,2]
[401151789,1767982242452,-20242.4689001,0.00017947,2]
[401151790,1767982242466,-8991.4861708,0.00017947,2]
[401151791,1767982242478,-40319.5839942,0.00017947,2]
[401151792,1767982242491,-4246.4305835,0.00017947,2]
[401151793,1767982242503,-152.0,0.00017956,4]
[401151794,1767982242515,-286.84842062,0.00017973,2]
[401151795,1767982242528,-500.0,0.00017973,2]
[401151796,1767982242540,-500.0,0.00017973,2]
[401151797,1767982242551,-500.0,0.00017973,2]
[401151798,1767982242563,-150.0,0.00017973,2]
[401151799,1767982242575,-500.0,0.00017973,2]
[401151800,1767982242587,-279.31517583,0.00017973,2]
[401151801,1767982242600,-500.0,0.00017973,2]
[401151802,1767982242612,-500.0,0.00017973,2]
[401151803,1767982242623,-500.0,0.00017973,2]
[401151804,1767982242635,-500.0,0.00017973,2]
[401151805,1767982242647,-500.0,0.00017973,2]
[401151806,1767982242659,-500.0,0.00017973,2]
[401151807,1767982242671,-500.0,0.00017973,2]
[401151808,1767982242683,-578.02071049,0.00017973,2]
[401151809,1767982242696,-429.09119552,0.00017973,2]
[401151810,1767982242708,-501.05787152,0.00017973,2]
[401151811,1767982242720,-500.0,0.00017973,2]
[401151812,1767982242732,-195.06667749,0.00017973,2]
[401151813,1767982242744,-515.27642925,0.00017973,2]
[401151814,1767982242756,-500.0,0.00017973,2]
[401151815,1767982242769,-500.0,0.00017973,2]
[401151816,1767982242781,-168.53464326,0.00017973,2]
[401151817,1767982242793,-500.0,0.00017973,2]
[401151818,1767982242805,-500.0,0.00017973,2]
[401151819,1767982242817,-500.0,0.00017973,2]
[401151821,1767982242840,-500.0,0.00017973,2]
[401151822,1767982242855,-500.0,0.00017973,2]
[401151823,1767982242869,-500.0,0.00017973,2]
[401151824,1767982242883,-500.0,0.00017973,2]
[401151826,1767982242897,-500.0,0.00017973,2]
[401151827,1767982242911,-165.3256661,0.00017973,2]
[401151828,1767982242926,-208.06887662,0.00017973,2]
[401151829,1767982242939,-500.0,0.00017973,2]
[401151830,1767982242955,-500.0,0.00017973,2]
[401151831,1767982242968,-500.0,0.00017973,2]
[401151832,1767982242981,-500.0,0.00017973,2]
[401151833,1767982242995,-500.0,0.00017973,2]
[401151834,1767982243008,-500.0,0.00017973,2]
[401151835,1767982243020,-500.0,0.00017973,2]
[401151836,1767982243033,-500.0,0.00017973,2]
[401151837,1767982243047,-500.0,0.00017973,2]
[401151838,1767982243059,-500.0,0.00017973,2]
[401151839,1767982243072,-500.0,0.00017973,2]
[401151840,1767982243085,-609.94892981,0.00017973,2]
[401151841,1767982243102,-500.0,0.00017973,2]
[401151842,1767982243114,-500.0,0.00017973,2]
[401151843,1767982243126,-500.0,0.00017973,2]
[401151844,1767982243140,-500.0,0.00017973,2]
[401151845,1767982243153,-500.0,0.00017973,2]
[401151846,1767982243171,-554.86072459,0.00017973,2]
[401151847,1767982243185,-182.86859792,0.00017973,2]
[401151848,1767982243200,-500.0,0.00017973,2]
[401151849,1767982243215,-398.03125352,0.00017973,2]
[401151850,1767982243228,-500.0,0.00017973,2]
[401151851,1767982243242,-500.0,0.00017973,2]
[401151852,1767982243256,-500.0,0.00017973,2]
[401151853,1767982243269,-500.0,0.00017973,2]
[401151854,1767982243283,-500.0,0.00017973,2]
[401151855,1767982243296,-1000.0,0.00017979,2]
[401151856,1767982243309,-500.0,0.00017982,2]
[401151857,1767982243322,-1000.0,0.0001799,2]
[401151858,1767982243335,-152.97729788,0.0001799,2]
[401151859,1767982243353,-152.97729788,0.0001799,2]
[401151860,1767982243367,-150.0,0.00017999,2]
[401151861,1767982243381,-273.60393039,0.00017999,2]
[401151862,1767982243396,-1006.3197,0.00017999,2]
[401151863,1767982243410,-300.0,0.00017999,2]
[401151864,1767982243424,-666.0,0.00017999,2]
[401151865,1767982243438,-300.0,0.00017999,2]
[401151866,1767982243452,-300.0,0.00017999,2]
[401151867,1767982243466,-300.0,0.00017999,2]
[401151868,1767982243479,-666.0,0.00017999,2]
[401151869,1767982243493,-150.0,0.00017999,2]
[401151870,1767982243505,-150.0,0.00017999,2]
[401151871,1767982243519,-300.0,0.00017999,2]
[401151872,1767982243536,-666.0,0.00017999,2]
[401151873,1767982243550,-150.1,0.00017999,2]
[401151874,1767982243565,-704756.73708123,0.00018,2]
[401151875,1767982243578,-569932.20122052,0.00018,2]
[401151902,1767982245835,-196.36582854,0.00016986,2]
[401151903,1767982245845,-2071.58230469,0.000179,2]
[401151904,1767982245854,-99.47101958,0.00017999,2]
[401151905,1767982245865,-50.62898042,0.00017999,2]
[401151906,1767982245874,-1565.07794419,0.00018,2]
[401151907,1767982245886,-612.65020379,0.00018,2]
[401151908,1767982245897,-3086.11320278,0.00018,2]
[401151909,1767982246206,-254.94538776,0.00017682,2]
[401151910,1767982246240,-227.87461224,0.00017682,2]
[401151911,1767982246250,-238.91899706,0.00017844,2]
[401151912,1767982246261,-3411.37260033,0.00017844,2]
[401151914,1767982246273,-2902.70840261,0.00017844,2]
[401151916,1767982246282,-805.84526078,0.00018,2]
[401151922,1767982246782,-151.0,0.00016013,2]
[401151923,1767982246792,-661.58,0.000164,2]
[401151924,1767982246801,-151.0,0.00017428,2]
[401151925,1767982246810,-2071.58230469,0.000179,2]
[401151926,1767982246819,-1276.04096974,0.000179,2]
[401151927,1767982246830,-281.178,0.000179,2]
[401151928,1767982246844,-537.23074852,0.000179,2]
[401151929,1767982246854,-10172.89687938,0.00018,2]
[401151930,1767982246865,-4400.33003597,0.00018,2]
[401151931,1767982246876,-692.33650997,0.00018,2]
[401151932,1767982246887,-379.12000001,0.00018,2]
[401151933,1767982246905,-1831.19983388,0.00018,2]
[401151934,1767982246916,-2698.31293737,0.00018,2]
[401151935,1767982246927,-6154.21511341,0.00018,2]
[401151967,1767983160248,7049.59447997,8e-05,2]
[401151969,1767983198818,1100.0,0.00010496,2]
[401151970,1767983203119,1100.0,0.00010496,2]
[401151972,1767983208567,1100.0,0.00010496,2]
[401151977,1767983356132,-1100.0,0.00011025,2]
[401151978,1767983356154,-1100.0,0.00011605,2]
[401151979,1767983356176,-44.14340523,0.00012127,2]
[401151987,1767983432258,-249.0,0.00012127,2]
[401151988,1767983432268,-371.10670881,0.00012127,2]
[401151989,1767983432278,-1060.30320128,0.00012216,2]
[401152027,1767983433142,-39.69679872,0.00012216,2]
[401152028,1767983433152,-1100.0,0.00012859,2]
[401152029,1767983433162,-1100.0,0.00013536,2]
[401152030,1767983433173,-1100.0,0.00014248,2]
[401152031,1767983433183,-1100.0,0.0001496,2]
[401152032,1767983433194,-1200.0,0.00015226,2]
[401152033,1767983433205,-300.0,0.00015226,2]
[401152034,1767983433216,-3240.0,0.00015227,2]
[401152035,1767983433227,-649.24,0.00015697,2]
[401152036,1767983433237,-300.0,0.00015707,2]
[401152037,1767983433249,-1100.0,0.00015708,2]
[401152038,1767983433259,-654.27,0.00015712,2]
[401152039,1767983433271,-999.0,0.00015786,3]
[401152040,1767983433282,-151.0,0.00015841,2]
[401152041,1767983433293,-151.0,0.00015841,2]
[401152042,1767983433304,-151.0,0.00015846,2]
[401152043,1767983433314,-151.0,0.00015846,2]
[401152044,1767983433324,-1000.0,0.00015918,2]
[401152045,1767983433335,-8453.55784175,0.00016,4]